bitfinex-derivatives/quotes_SOLF0:USTF0_20220104
["timestamp","ask_amount","ask_price","bid_price","bid_amount"]
[1641266412664,3.37015689,167.68,167.63,0.67395573]
[1641266412862,29.69333101,167.68,167.63,0.67395573]
[1641266413062,29.69333101,167.68,167.63,3.67395573]
[1641266413363,29.69333101,167.68,167.63,0.67395573]
[1641266413563,3.37015689,167.67,167.64,0.67395573]
[1641266415865,3.37015689,167.67,167.63,0.67395573]
[1641266417169,29.69333101,167.67,167.63,0.67395573]
[1641266417569,3.37015689,167.66,167.63,0.67395573]
[1641266418267,3.37015689,167.66,167.64,3.0]
[1641266418869,3.37015689,167.66,167.65,3.67395573]
[1641266419270,33.97114156,167.69,167.65,3.67395573]
[1641266419469,33.97114156,167.69,167.68,3.0]
[1641266419669,33.97114156,167.69,167.68,8.706]
[1641266420070,26.32317412,167.71,167.68,6.37995573]
[1641266420472,26.32317412,167.71,167.69,0.67395573]
[1641266421371,26.32317412,167.71,167.67,0.67395573]
[1641266421570,64.52004156,167.72,167.67,0.67395573]
[1641266422569,64.52004156,167.72,167.68,3.0]
[1641266422769,33.97114156,167.72,167.68,8.108]
[1641266422972,26.32317412,167.72,167.68,5.108]
[1641266423172,26.32317412,167.72,167.69,3.67395573]
[1641266423570,26.32317412,167.72,167.7,0.67395573]
[1641266424071,26.32317412,167.72,167.69,0.67395573]
[1641266424670,26.32317412,167.72,167.69,3.67395573]
[1641266425480,26.32317412,167.72,167.7,0.67395573]
[1641266426372,26.32317412,167.71,167.7,0.67395573]
[1641266427372,26.32317412,167.71,167.7,3.67395573]
[1641266427573,26.32317412,167.72,167.7,3.0]
[1641266427971,26.32317412,167.72,167.71,0.67395573]
[1641266428372,26.32317412,167.72,167.69,3.67395573]
[1641266428571,26.32317412,167.72,167.69,0.67395573]
[1641266428773,26.32317412,167.72,167.69,3.67395573]
[1641266428973,26.32317412,167.72,167.69,0.67395573]
[1641266429371,26.32317412,167.72,167.71,3.0]
[1641266429671,26.32317412,167.72,167.71,0.67395573]
[1641266430074,26.32317412,167.72,167.69,0.67395573]
[1641266431774,39.93310424,167.73,167.57,15.58331716]
[1641266431975,39.93310424,167.73,167.64,3.0]
[1641266432376,12.58496065,167.67,167.64,3.0]
[1641266432576,12.58496065,167.67,167.59,3.0]
[1641266432776,12.58496065,167.67,167.64,3.0]
[1641266433176,12.58496065,167.67,167.65,0.67384198]
[1641266433379,12.58496065,167.67,167.66,3.0]
[1641266433776,12.58496065,167.68,167.66,3.0]
[1641266433977,12.58496065,167.68,167.66,3.67384198]
[1641266434176,12.58496065,167.68,167.66,9.79584198]
[1641266434379,12.58496065,167.68,167.67,0.67384198]
[1641266434578,12.58496065,167.68,167.67,3.67384198]
[1641266434781,15.95372562,167.68,167.67,3.67384198]
[1641266435179,3.36876497,167.68,167.67,3.67384198]
[1641266435379,12.58496065,167.7,167.67,3.67384198]
[1641266435580,12.58496065,167.7,167.67,0.67384198]
[1641266435982,12.58496065,167.72,167.67,0.67384198]
[1641266436683,3.3683085,167.71,167.67,0.67384198]
[1641266437084,3.3683085,167.71,167.7,3.0]
[1641266437482,3.3683085,167.71,167.7,3.67384198]
[1641266437683,15.95326915,167.71,167.7,3.67384198]
[1641266437882,15.95326915,167.71,167.7,9.23584198]
[1641266438383,3.3683085,167.71,167.7,9.23584198]
[1641266438884,3.3683085,167.72,167.7,9.23584198]
[1641266439183,3.3683085,167.72,167.71,3.0]
[1641266439383,3.3683085,167.72,167.71,3.67384198]
[1641266439683,3.3683085,167.72,167.71,0.67384198]
[1641266440282,3.3683085,167.72,167.7,0.67384198]
[1641266440985,3.3683085,167.72,167.71,3.0]
[1641266441589,26.32317412,167.73,167.71,3.67384198]
[1641266441788,7.61058635,167.74,167.71,0.67384198]
[1641266441989,7.61058635,167.74,167.72,0.67384198]
[1641266442390,3.36806965,167.73,167.72,0.67384198]
[1641266442891,3.36806965,167.73,167.71,0.67384198]
[1641266443491,3.36806965,167.73,167.72,3.0]
[1641266444095,3.36806965,167.73,167.72,3.67384198]
[1641266444292,3.36806965,167.73,167.72,0.67384198]
[1641266444898,3.36806965,167.73,167.7,3.67384198]
[1641266445200,3.36806965,167.73,167.7,0.67384198]
[1641266445399,3.36806965,167.73,167.71,0.67384198]
[1641266445797,3.36806965,167.73,167.7,5.20484198]
[1641266446200,3.36806965,167.73,167.71,0.67384198]
[1641266447100,3.36806965,167.73,167.7,4.198e-05]
[1641266447501,3.36806965,167.73,167.68,3.0]
[1641266447902,29.69124377,167.73,167.68,3.0]
[1641266448100,29.69124377,167.73,167.65,4.19498688]
[1641266448401,29.69124377,167.73,167.68,3.0]
[1641266448600,3.36806965,167.72,167.68,3.0]
[1641266449005,3.36806965,167.72,167.69,0.67366975]
[1641266449801,3.36806965,167.72,167.66,3.67366975]
[1641266450204,3.36806965,167.72,167.67,0.67366975]
[1641266450405,29.69124377,167.72,167.67,3.67366975]
[1641266450704,29.69124377,167.72,167.67,3.0]
[1641266451105,57.35603377,167.72,167.67,3.0]
[1641266451303,29.69124377,167.71,167.68,3.67366975]
[1641266451705,3.36806965,167.7,167.69,0.67366975]
[1641266452104,3.36806965,167.7,167.65,0.67366975]
[1641266452604,3.36806965,167.7,167.67,3.0]
[1641266452805,3.36806965,167.7,167.67,9.08]
[1641266453005,56.83657412,167.71,167.68,0.67366975]
[1641266453206,7.61058635,167.7,167.68,0.67366975]
[1641266455208,3.36852262,167.69,167.66,0.67366975]
[1641266455608,3.36852262,167.69,167.66,3.0]
[1641266456008,3.36852262,167.69,167.67,0.67366975]
[1641266456812,1.81448026,167.68,167.67,0.67366975]
[1641266457011,34.50327026,167.68,167.67,6.975e-05]
[1641266457210,34.50327026,167.68,167.6,12.58331716]
[1641266457211,40.4673664,167.68,167.6,12.58331716]
[1641266457410,74.40112687,167.68,167.56,12.58331716]
[1641266458210,74.40112687,167.68,167.56,2.3576069]
[1641266458211,26.32317412,167.66,167.56,2.3576069]
[1641266458411,26.32317412,167.66,167.59,3.0]
[1641266458613,26.32317412,167.66,167.56,2.3576069]
[1641266458813,26.32317412,167.66,167.6,3.0]
[1641266459013,31.03441077,167.65,167.6,3.0]
[1641266459413,3.36962077,167.64,167.6,3.0]
[1641266460214,12.63449427,167.62,167.6,3.0]
[1641266460415,12.63449427,167.62,167.61,0.67392906]
[1641266462515,1.81448026,167.64,167.61,0.67392906]
[1641266462716,1.81448026,167.64,167.56,0.67392906]
[1641266462717,28.13765438,167.64,167.56,0.67392906]
[1641266462918,28.13765438,167.64,167.56,3.67392906]
[1641266463118,3.36974429,167.63,167.56,0.67392906]
[1641266463317,12.63591986,167.61,167.59,3.0]
[1641266463516,12.63591986,167.61,167.57,2.35773464]
[1641266463717,12.63591986,167.61,167.57,5.35773464]
[1641266463916,1.81448026,167.62,167.58,0.67392906]
[1641266464420,1.81448026,167.62,167.59,3.0]
[1641266464819,12.63644896,167.61,167.6,0.67392906]
[1641266465718,12.63644896,167.61,167.56,3.0]
[1641266466420,12.63644896,167.61,167.53,21.67859173]
[1641266466620,12.63644896,167.6,167.53,21.67859173]
[1641266466820,12.63644896,167.6,167.56,3.0]
[1641266467024,12.63644896,167.6,167.55,3.0]
[1641266467221,1.81448026,167.6,167.57,3.0]
[1641266467422,1.81448026,167.6,167.53,24.03628166]
[1641266468023,12.6367004,167.6,167.53,24.03628166]
[1641266468224,12.6367004,167.6,167.58,3.0]
[1641266468625,12.6367004,167.6,167.56,6.019]
[1641266468924,27.66479,167.62,167.56,6.019]
[1641266468925,14.49085419,167.61,167.56,6.019]
[1641266469325,14.49085419,167.61,167.56,9.019]
[1641266469525,14.49085419,167.61,167.56,6.019]
[1641266469725,14.49085419,167.61,167.57,2.35770138]
[1641266469926,14.49085419,167.61,167.58,3.0]
[1641266470133,14.49085419,167.61,167.57,2.35770138]
[1641266470527,14.49085419,167.61,167.56,6.019]
[1641266470528,14.49085419,167.61,167.58,3.0]
[1641266471027,14.49085419,167.61,167.56,6.019]
[1641266471028,14.49085419,167.61,167.6,3.0]
[1641266471228,14.49085419,167.61,167.6,7.768]
[1641266471429,26.32317412,167.65,167.6,7.768]
[1641266471629,26.32317412,167.65,167.6,4.768]
[1641266471930,26.32317412,167.65,167.64,3.0]
[1641266472128,26.32317412,167.65,167.64,8.685]
[1641266472630,7.40154034,167.68,167.64,8.685]
[1641266473430,3.36896566,167.67,167.64,8.685]
[1641266473831,3.36896566,167.7,167.64,8.685]
[1641266474130,3.36896566,167.7,167.64,5.685]
[1641266474429,10.770506,167.7,167.64,3.0]
[1641266475030,37.09368012,167.7,167.64,9.108]
[1641266475331,3.36896566,167.69,167.64,9.108]
[1641266478232,3.36896566,167.69,167.66,3.0]
[1641266478433,3.36896566,167.69,167.64,6.108]
[1641266478934,7.40154034,167.7,167.64,6.108]
[1641266479133,7.40154034,167.7,167.67,3.0]
[1641266479334,7.40154034,167.7,167.64,6.108]
[1641266479534,27.66479,167.71,167.67,3.0]
[1641266479734,27.66479,167.71,167.64,6.108]
[1641266480236,27.66479,167.71,167.67,3.0]
[1641266480441,10.76231964,167.7,167.67,3.0]
[1641266480739,3.36859217,167.69,167.67,3.0]
[1641266481640,3.36859217,167.69,167.64,6.108]
[1641266481839,3.36859217,167.69,167.67,3.0]
[1641266482038,3.36859217,167.69,167.67,4.72]
[1641266482439,7.39372747,167.7,167.68,3.0]
[1641266482839,7.39372747,167.7,167.67,4.72]
[1641266483239,7.39372747,167.7,167.68,3.0]
[1641266483439,7.39372747,167.7,167.67,4.72]
[1641266484042,3.3685871,167.69,167.67,4.72]
[1641266484444,3.3685871,167.69,167.68,3.0]
[1641266484642,7.39372747,167.7,167.68,3.0]
[1641266486046,7.39372747,167.7,167.67,4.72]
[1641266486246,7.39372747,167.7,167.62,27.66479]
[1641266486445,3.36867815,167.69,167.62,27.66479]
[1641266486846,3.36867815,167.69,167.66,3.0]
[1641266487047,3.36867815,167.69,167.62,30.66479]
[1641266487446,3.36867815,167.69,167.67,3.0]
[1641266487646,3.36867815,167.69,167.62,27.66479]
[1641266487946,3.36867815,167.69,167.66,3.0]
[1641266488148,3.36867815,167.69,167.64,6.623]
[1641266488348,7.39372747,167.7,167.64,6.623]
[1641266488547,7.39372747,167.7,167.64,9.623]
[1641266488948,3.36867262,167.69,167.64,9.623]
[1641266489148,3.36867262,167.69,167.64,3.0]
[1641266490349,3.36867262,167.69,167.62,27.66479]
[1641266490752,3.36867262,167.69,167.63,3.0]
[1641266491151,3.36867262,167.69,167.62,27.66479]
[1641266491352,3.36867262,167.69,167.64,3.0]
[1641266494056,3.36867262,167.69,167.62,27.66479]
[1641266494256,8.55267262,167.69,167.6,32.7866]
[1641266494457,32.5518,167.68,167.6,32.7866]
[1641266494656,32.5518,167.68,167.63,3.0]
[1641266494858,35.92047262,167.68,167.63,3.0]
[1641266495160,3.36867262,167.67,167.63,3.0]
[1641266495657,3.36867262,167.68,167.63,3.0]
[1641266496058,3.36867262,167.69,167.63,3.0]
[1641266496360,10.76870951,167.69,167.63,3.0]
[1641266496857,3.36867262,167.68,167.63,3.0]
[1641266497757,3.36867262,167.68,167.62,27.66479]
[1641266498862,3.36867262,167.68,167.64,3.0]
[1641266499361,3.36867262,167.68,167.62,6.592]
[1641266499960,3.36867262,167.68,167.62,34.25679]
[1641266500162,3.36867262,167.68,167.63,3.0]
[1641266501163,3.36867262,167.68,167.62,6.592]
[1641266501364,3.36867262,167.68,167.63,3.0]
[1641266501762,15.99644575,167.68,167.63,3.0]
[1641266501964,12.62777313,167.68,167.63,3.0]
[1641266502264,12.62777313,167.68,167.62,27.66479]
[1641266502468,12.62777313,167.68,167.67,3.0]
[1641266502968,12.62777313,167.69,167.67,3.0]
[1641266503371,12.62777313,167.7,167.67,3.0]
[1641266503873,12.62777313,167.7,167.61,22.06743258]
[1641266504067,44.63667313,167.7,167.64,27.66479]
[1641266504268,44.63667313,167.7,167.67,3.0]
[1641266504471,12.62777313,167.7,167.67,3.0]
[1641266505270,12.62777313,167.7,167.64,27.66479]
[1641266505474,12.62777313,167.7,167.67,3.0]
[1641266505871,12.62777313,167.7,167.64,27.66479]
[1641266506071,12.62777313,167.7,167.67,3.0]
[1641266506472,12.62777313,167.7,167.64,27.66479]
[1641266506770,12.62777313,167.7,167.67,3.0]
[1641266507073,12.62777313,167.7,167.64,27.66479]
[1641266507271,12.62777313,167.7,167.67,3.0]
[1641266507673,12.62777313,167.7,167.64,27.66479]
[1641266507872,12.62777313,167.7,167.67,3.0]
[1641266508273,12.62777313,167.7,167.64,27.66479]
[1641266508473,12.62777313,167.7,167.67,3.0]
[1641266508872,12.62777313,167.7,167.62,12.62777313]
[1641266509075,3.36872119,167.69,167.62,12.62777313]
[1641266509473,3.36872119,167.69,167.6,32.7866]
[1641266509474,12.62777313,167.68,167.63,3.0]
[1641266509674,12.62777313,167.68,167.62,3.0]
[1641266509974,12.62777313,167.68,167.6,45.41437313]
[1641266509975,12.62777313,167.68,167.61,27.66479]
[1641266510173,12.62777313,167.68,167.64,3.0]
[1641266510575,12.62777313,167.68,167.67,3.0]
[1641266510774,12.62777313,167.68,167.61,40.29256313]
[1641266510975,12.62777313,167.68,167.66,3.0]
[1641266511475,12.62777313,167.68,167.61,40.29256313]
[1641266511677,12.62777313,167.68,167.65,3.0]
[1641266511876,12.62777313,167.68,167.62,2.48853074]
[1641266512078,12.62777313,167.68,167.65,3.0]
[1641266512274,12.62777313,167.68,167.62,2.48853074]
[1641266512478,12.62777313,167.68,167.67,3.0]
[1641266512875,12.62777313,167.69,167.65,3.0]
[1641266513875,12.62777313,167.69,167.61,40.29256313]
[1641266514777,12.62777313,167.69,167.62,2.48854926]
[1641266516980,12.62777313,167.69,167.66,3.0]
[1641266517682,12.62777313,167.69,167.65,4.21040599]
[1641266517981,12.62777313,167.69,167.65,7.21040599]
[1641266518182,12.62777313,167.69,167.65,4.21040599]
[1641266518381,12.62777313,167.7,167.66,4.21040599]
[1641266520381,12.62777313,167.69,167.65,4.21040599]
[1641266521685,12.62777313,167.69,167.66,3.0]
[1641266522685,12.62777313,167.69,167.65,4.21040599]
[1641266522885,12.62777313,167.69,167.66,3.0]
[1641266523088,12.62777313,167.68,167.66,3.0]
[1641266523286,15.99656441,167.68,167.66,3.0]
[1641266523586,12.62777313,167.68,167.64,4.21040599]
[1641266524386,3.36895786,167.67,167.64,4.21040599]
[1641266524591,17.71872396,167.67,167.63,4.21040599]
[1641266525187,17.71872396,167.67,167.59,3.0]
[1641266525388,3.36895786,167.66,167.58,3.0]
[1641266525587,3.36895786,167.66,167.56,32.92887853]
[1641266525787,3.36895786,167.66,167.58,3.0]
[1641266525987,27.66479,167.63,167.57,9.44320946]
[1641266527092,27.66479,167.63,167.54,35.92887853]
[1641266527291,27.66479,167.63,167.34,22.33241517]
[1641266527292,33.87339297,167.62,167.53,2.32603783]
[1641266527489,37.24369567,167.62,167.53,2.32603783]
[1641266527889,3.3703027,167.61,167.56,3.0]
[1641266528091,27.66479,167.6,167.5,2.32603783]
[1641266528488,27.66479,167.6,167.56,3.0]
[1641266528889,27.66479,167.6,167.5,2.32603783]
[1641266529389,27.66479,167.6,167.5,5.32603783]
[1641266529791,27.66479,167.6,167.51,2.32603783]
[1641266529990,1.71672452,167.59,167.51,2.32603783]
[1641266530493,1.71672452,167.59,167.55,3.0]
[1641266530694,1.71672452,167.59,167.51,2.32603783]
[1641266531399,1.71672452,167.59,167.52,3.0]
[1641266531798,1.71672452,167.59,167.51,2.32603783]
[1641266532000,27.66479,167.56,167.53,2.32603783]
[1641266532201,33.54879,167.56,167.53,2.32603783]
[1641266532400,33.54879,167.56,167.51,3.0]
[1641266532602,33.54879,167.56,167.5,12.4434339]
[1641266533102,33.54879,167.56,167.5,9.4434339]
[1641266533299,33.54879,167.56,167.5,12.4434339]
[1641266533700,33.54879,167.56,167.5,3.0]
[1641266533900,33.54879,167.56,167.44,5.96534137]
[1641266534200,33.54879,167.56,167.45,27.66479]
[1641266534399,33.54879,167.56,167.44,5.96534137]
[1641266534803,33.54879,167.56,167.43,3.0]
[1641266535002,33.54879,167.56,167.49,3.0]
[1641266535602,33.54879,167.56,167.44,32.92887853]
[1641266535804,29.8475,167.55,167.44,32.92887853]
[1641266536602,29.8475,167.55,167.49,3.0]
[1641266537207,29.8475,167.55,167.49,8.345]
[1641266537606,29.8475,167.55,167.49,5.345]
[1641266538205,27.66479,167.53,167.43,56.15611665]
[1641266538406,27.66479,167.53,167.45,3.0]
[1641266538606,27.66479,167.53,167.47,3.0]
[1641266538806,27.66479,167.53,167.43,56.15611665]
[1641266539006,27.66479,167.53,167.49,3.0]
[1641266539207,27.66479,167.53,167.49,8.274]
[1641266540110,20.92218008,167.53,167.49,8.274]
[1641266540309,20.92218008,167.53,167.49,5.274]
[1641266542912,20.92218008,167.53,167.5,3.0]
[1641266543414,20.92218008,167.53,167.49,5.274]
[1641266543713,20.92218008,167.53,167.5,3.0]
[1641266543915,8.03467354,167.54,167.5,3.0]
[1641266544713,35.81604576,167.55,167.5,3.0]
[1641266546815,35.81604576,167.55,167.49,5.274]
[1641266547014,35.81604576,167.55,167.5,3.0]
[1641266547616,35.81604576,167.55,167.47,3.0]
[1641266547815,41.62904576,167.55,167.45,3.0]
[1641266548015,3.37175343,167.54,167.47,3.0]
[1641266548215,27.66479,167.53,167.45,3.0]
[1641266548616,27.66479,167.53,167.43,41.73921227]
[1641266548918,27.66479,167.53,167.45,3.0]
[1641266549115,27.66479,167.53,167.44,8.98411227]
[1641266549116,7.87296483,167.52,167.44,8.98411227]
[1641266550618,7.87296483,167.52,167.47,3.0]
[1641266550817,7.87296483,167.52,167.43,37.7891]
[1641266551021,33.5396,167.51,167.47,3.0]
[1641266551222,7.87296483,167.52,167.47,3.0]
[1641266551421,7.87296483,167.52,167.43,37.7891]
[1641266551623,34.6165,167.51,167.47,3.0]
[1641266551822,7.87296483,167.52,167.45,3.0]
[1641266552223,7.87296483,167.52,167.43,32.7551]
[1641266552423,27.66479,167.53,167.5,3.0]
[1641266552624,27.66479,167.53,167.5,4.369]
[1641266553125,27.66479,167.53,167.5,7.369]
[1641266553524,27.66479,167.53,167.44,8.82248595]
[1641266553725,27.66479,167.53,167.46,3.0]
[1641266554126,27.66479,167.53,167.47,3.0]
[1641266554625,27.66479,167.53,167.44,8.82248595]
[1641266556025,12.643679,167.52,167.45,12.643679]
[1641266556727,40.308469,167.53,167.45,12.643679]
[1641266557428,40.308469,167.53,167.47,3.0]
[1641266557628,12.643679,167.52,167.47,3.0]
[1641266557829,12.643679,167.52,167.44,21.46616495]
[1641266558028,12.643679,167.52,167.45,12.643679]
[1641266558427,12.643679,167.52,167.49,3.0]
[1641266558628,40.308469,167.53,167.49,3.0]
[1641266558830,40.308469,167.53,167.45,12.643679]
[1641266559027,40.308469,167.53,167.49,3.0]
[1641266559728,27.66479,167.53,167.49,3.0]
[1641266560728,27.66479,167.53,167.46,40.308469]
[1641266561229,45.046979,167.54,167.49,3.0]
[1641266561433,12.643679,167.53,167.49,3.0]
[1641266562133,45.046979,167.54,167.49,3.0]
[1641266562733,45.046979,167.54,167.47,33.2613]
[1641266563233,45.046979,167.54,167.49,3.0]
[1641266563734,12.643679,167.53,167.49,3.0]
[1641266564036,12.643679,167.53,167.47,36.2613]
[1641266564236,12.643679,167.53,167.52,3.0]
[1641266564535,12.643679,167.53,167.52,9.719]
[1641266564735,8.03475205,167.53,167.52,9.719]
[1641266565137,35.46317412,167.56,167.52,12.719]
[1641266565335,35.46317412,167.56,167.55,3.0]
[1641266565737,9.14,167.56,167.55,3.0]
[1641266571643,14.911,167.56,167.55,3.0]
[1641266573246,9.14,167.56,167.55,5.44106183]
[1641266578850,9.1,167.63,167.55,8.44106183]
[1641266579054,9.1,167.63,167.59,3.0]
[1641266579251,26.32317412,167.64,167.62,3.0]
[1641266579551,26.32317412,167.67,167.62,3.0]
[1641266579750,26.32317412,167.67,167.57,3.0]
[1641266579951,26.32317412,167.67,167.62,3.0]
[1641266580556,33.62924187,167.66,167.62,3.0]
[1641266580856,33.62924187,167.66,167.58,2.44106183]
[1641266581054,33.62924187,167.66,167.57,3.0]
[1641266581655,33.62924187,167.66,167.58,2.44126578]
[1641266582556,27.66479,167.63,167.62,3.0]
[1641266582757,27.66479,167.63,167.58,2.44126578]
[1641266582956,27.66479,167.63,167.62,3.0]
[1641266583155,33.62924187,167.66,167.62,3.0]
[1641266583356,33.62924187,167.66,167.58,2.44126578]
[1641266584257,3.36970429,167.65,167.58,2.44126578]
[1641266584756,61.29403187,167.66,167.58,2.44126578]
[1641266585459,7.52966666,167.65,167.6,4.21189765]
[1641266585661,7.52966666,167.65,167.6,7.21189765]
[1641266585969,3.36998716,167.64,167.6,3.0]
[1641266586359,7.52966666,167.65,167.59,4.21189765]
[1641266586560,7.52966666,167.65,167.62,3.0]
[1641266587060,87.61720599,167.66,167.62,3.0]
[1641266587259,61.29403187,167.66,167.62,3.0]
[1641266587459,61.29403187,167.66,167.61,3.0]
[1641266587660,3.36982626,167.65,167.56,3.0]
[1641266588663,3.36982626,167.65,167.62,3.0]
[1641266588861,27.66479,167.63,167.62,3.0]
[1641266591864,37.74724187,167.66,167.62,3.0]
[1641266592264,3.36954938,167.65,167.62,3.0]
[1641266592465,10.89898471,167.65,167.62,3.0]
[1641266593167,7.52943533,167.65,167.62,3.0]
[1641266594767,9.30002924,167.65,167.62,3.0]
[1641266595568,12.63581672,167.63,167.62,3.0]
[1641266595966,12.63581672,167.64,167.62,3.0]
[1641266599874,14.40641063,167.65,167.61,4.21189765]
[1641266600973,27.66479,167.66,167.64,3.0]
[1641266601174,31.375,167.68,167.64,3.0]
[1641266601374,62.90796412,167.69,167.66,3.0]
[1641266601574,62.90796412,167.69,167.62,4.21189765]
[1641266601776,12.6336763,167.66,167.62,4.21189765]
[1641266601976,12.6336763,167.66,167.65,6.0]
[1641266602176,1.76984392,167.67,167.65,12.446]
[1641266602379,1.76984392,167.67,167.65,9.446]
[1641266602676,1.76984392,167.68,167.66,3.0]
[1641266602876,1.76984392,167.68,167.65,34.11079]
[1641266603276,21.45125911,167.7,167.67,3.0]
[1641266603476,21.45125911,167.7,167.66,6.65182593]
[1641266603875,1.76876825,167.69,167.68,3.0]
[1641266604675,14.40006484,167.69,167.68,3.0]
[1641266606379,1.76876825,167.69,167.68,3.0]
[1641266606977,1.76876825,167.69,167.66,4.21028327]
[1641266607677,7.65376825,167.69,167.66,4.21028327]
[1641266607880,7.65376825,167.69,167.66,6.65185717]
[1641266608078,7.65376825,167.69,167.66,2.44165717]
[1641266608279,3.36900692,167.68,167.66,2.44165717]
[1641266608478,3.36900692,167.68,167.63,3.0]
[1641266608679,5.13777517,167.68,167.63,3.0]
[1641266609178,1.76876825,167.68,167.63,3.0]
[1641266609578,1.76876825,167.67,167.63,3.0]
[1641266609779,12.63355047,167.66,167.59,49.51749655]
[1641266610279,12.63355047,167.66,167.63,3.0]
[1641266610479,12.63355047,167.65,167.63,5.871]
[1641266610979,12.63355047,167.65,167.64,3.0]
[1641266611179,12.63355047,167.66,167.64,3.0]
[1641266611581,12.63355047,167.66,167.63,5.871]
[1641266611981,12.63355047,167.67,167.6,21.85266466]
[1641266612383,12.63355047,167.67,167.65,3.0]
[1641266614785,12.63355047,167.67,167.6,24.85265993]
[1641266615485,12.63355047,167.67,167.61,2.40358994]
[1641266616185,12.63355047,167.67,167.6,15.63581672]
[1641266616386,1.76876825,167.69,167.59,72.19899]
[1641266617486,1.76876825,167.69,167.6,2.40358558]
[1641266617688,12.63355047,167.67,167.6,2.40358558]
[1641266620589,12.63355047,167.67,167.66,3.0]
[1641266623390,14.40231872,167.69,167.66,3.0]
[1641266624191,1.76876825,167.69,167.66,3.0]
[1641266624391,1.76876825,167.69,167.63,30.66479]
[1641266624591,8.47376825,167.69,167.62,15.63581672]
[1641266624790,14.43733088,167.69,167.64,2.40370574]
[1641266625191,27.66479,167.66,167.64,2.40370574]
[1641266625392,27.66479,167.66,167.62,12.63581672]
[1641266625590,12.63355047,167.66,167.58,12.63581672]
[1641266626192,14.40231872,167.66,167.61,3.0]
[1641266626891,14.40231872,167.66,167.62,2.39997355]
[1641266628696,3.36957895,167.65,167.62,2.39997355]
[1641266628895,9.01257895,167.65,167.62,2.39997355]
[1641266629297,12.63355047,167.63,167.59,3.0]
[1641266630099,12.63355047,167.63,167.58,3.0]
[1641266630298,14.40231872,167.63,167.58,3.0]
[1641266630699,14.40231872,167.63,167.59,3.0]
[1641266631103,12.63355047,167.61,167.59,3.0]
[1641266631902,12.63355047,167.62,167.54,24.85283032]
[1641266632502,12.63355047,167.62,167.55,2.39980849]
[1641266633604,12.63355047,167.62,167.6,3.0]
[1641266634603,12.63355047,167.62,167.55,12.63581672]
[1641266634803,12.63355047,167.62,167.6,3.0]
[1641266635206,14.40231872,167.63,167.6,3.0]
[1641266635406,14.40231872,167.63,167.56,12.63581672]
[1641266635604,19.26031872,167.63,167.56,12.63581672]
[1641266636406,1.76876825,167.62,167.55,12.63581672]
[1641266636806,1.76876825,167.62,167.59,3.0]
[1641266637204,38.9841,167.63,167.54,5.3998376]
[1641266637404,38.9841,167.63,167.54,2.3998376]
[1641266637604,38.9841,167.63,167.62,3.0]
[1641266637805,1.80283653,167.62,167.57,3.0]
[1641266638007,1.80283653,167.62,167.56,3.0]
[1641266638404,4.858,167.63,167.56,3.0]
[1641266639908,65.83869,167.64,167.56,3.0]
[1641266640110,65.83869,167.64,167.56,9.553]
[1641266640314,1.80267606,167.63,167.56,9.553]
[1641266643412,65.83869,167.64,167.56,9.553]
[1641266644211,1.80446273,167.63,167.56,9.553]
[1641266644412,1.80446273,167.63,167.56,6.553]
[1641266644615,1.80446273,167.63,167.6,3.0]
[1641266644811,9.16,167.65,167.6,8.591]
[1641266645212,9.16,167.65,167.62,3.0]
[1641266645412,9.16,167.65,167.6,8.591]
[1641266645611,48.55125047,167.68,167.6,8.591]
[1641266645810,48.55125047,167.68,167.61,27.66479]
[1641266646311,48.55125047,167.68,167.61,33.05450001]
[1641266647212,1.81000817,167.67,167.62,2.38971001]
[1641266648511,1.81000817,167.67,167.65,3.0]
[1641266648712,1.81000817,167.67,167.65,7.906]
[1641266648915,1.81000817,167.67,167.65,4.906]
[1641266649312,12.63355047,167.69,167.65,4.906]
[1641266649915,12.63355047,167.71,167.66,30.0642386]
[1641266650711,12.63355047,167.71,167.67,2.3994486]
[1641266651411,12.63355047,167.71,167.66,27.66479]
[1641266652813,12.63355047,167.7,167.66,27.66479]